bitfinex/quotes_SOLUSD_20260105
["timestamp","ask_amount","ask_price","bid_price","bid_amount"]
[1767644741687,0.71859895,139.02,138.95,0.38788388]
[1767644741886,0.71859895,139.01,138.95,13.50788388]
[1767644742188,0.71859895,139.01,138.93,8.35013837]
[1767644742189,0.71859895,139.0,138.93,0.38788388]
[1767644742379,0.71859895,138.97,138.89,0.38788388]
[1767644742585,0.71859895,138.96,138.9,13.50788388]
[1767644742781,0.71859895,138.95,138.9,13.50788388]
[1767644742982,0.71859895,138.93,138.88,13.12]
[1767644743180,0.71859895,138.92,138.86,20.70928599]
[1767644743380,0.71859895,138.98,138.88,0.38788388]
[1767644743578,0.71859895,138.95,138.88,0.38788388]
[1767644743880,0.71859895,138.95,138.89,0.38788388]
[1767644744097,0.71859895,138.95,138.9,13.50788388]
[1767644744279,0.71859895,138.93,138.88,0.38788388]
[1767644745173,0.71859895,138.91,138.86,0.38788388]
[1767644745791,0.71859895,138.91,138.86,7.58930569]
[1767644745986,6.87227353,138.93,138.87,7.58874128]
[1767644746195,0.71859895,138.93,138.87,7.58874128]
[1767644746781,0.71859895,138.93,138.88,0.38788388]
[1767644747391,7.91649017,138.93,138.88,0.38788388]
[1767644747787,0.71859895,138.92,138.87,20.3208574]
[1767644747992,0.71859895,138.93,138.88,0.38788388]
[1767644749292,0.71859895,138.92,138.87,13.12]
[1767644749491,0.71859895,138.92,138.86,7.58925308]
[1767644749696,6.87227353,138.91,138.84,15.9404791]
[1767644749899,6.87227353,138.91,138.85,13.50788388]
[1767644750294,14.07144286,138.91,138.85,13.50788388]
[1767644750496,0.71859895,138.9,138.83,7.59078457]
[1767644750692,6.87227353,138.9,138.84,0.38788388]
[1767644751005,0.71859895,138.89,138.84,0.38788388]
[1767644751702,0.71859895,138.89,138.84,7.59036053]
[1767644752205,0.71859895,138.93,138.86,0.38788388]
[1767644752407,0.71859895,138.93,138.86,69.18918423]
[1767644752604,0.71859895,138.93,138.87,13.50788388]
[1767644752990,6.15367458,138.95,138.88,0.38788388]
[1767644752991,0.71859895,138.95,138.88,0.38788388]
[1767644753198,7.9143966,138.97,138.89,0.38788388]
[1767644753500,0.71859895,138.97,138.89,0.38788388]
[1767644754306,0.71859895,138.97,138.9,7.19942404]
[1767644754503,0.71859895,138.97,138.91,13.50788388]
[1767644754898,7.91441753,138.97,138.91,13.50788388]
[1767644755094,0.70136422,138.96,138.89,7.58764767]
[1767644755305,0.70136422,138.96,138.9,13.12]
[1767644755496,0.70136422,138.95,138.89,13.50788388]
[1767644755691,0.70136422,138.94,138.87,0.38788388]
[1767644755894,0.70136422,138.94,138.88,13.12]
[1767644756310,0.70136422,138.94,138.88,20.32031052]
[1767644756510,0.70136422,138.94,138.89,7.19985624]
[1767644757813,0.70136422,138.94,138.89,20.31985624]
[1767644758391,0.70136422,138.93,138.88,7.58831257]
[1767644758912,0.70136422,138.92,138.87,13.552]
[1767644759614,0.70136422,138.92,138.87,0.432]
[1767644759908,0.70136422,138.9,138.87,0.432]
[1767644760110,0.70136422,138.89,138.83,7.20283655]
[1767644760320,25.19287175,138.93,138.82,0.38788388]
[1767644760321,0.70136422,138.87,138.82,0.38788388]
[1767644760509,0.70136422,138.86,138.8,11.18965904]
[1767644760695,0.70136422,138.86,138.8,72.78965904]
[1767644761311,0.72431177,138.85,138.8,3.31062688]
[1767644761796,0.72431177,138.84,138.8,3.31062688]
[1767644761998,0.72431177,138.84,138.76,82.59542531]
[1767644762301,0.72431177,138.84,138.77,7.87489417]
[1767644762497,0.72431177,138.84,138.76,61.6]
[1767644762498,0.72431177,138.83,138.76,68.80662559]
[1767644762703,17.19891081,138.84,138.75,61.6]
[1767644762704,0.72431177,138.81,138.75,61.6]
[1767644762915,0.69431178,138.81,138.74,69.47624472]
[1767644763088,0.66431179,138.81,138.74,82.59624472]
[1767644763294,0.66431179,138.81,138.74,62.26890887]
[1767644763295,9.99613998,138.81,138.74,62.26890887]
[1767644763518,25.20910906,138.84,138.74,61.6]
[1767644763716,25.20910906,138.84,138.74,0.66890887]
[1767644763892,25.20910906,138.84,138.7,0.66890887]
[1767644763893,9.99613998,138.78,138.7,0.66890887]
[1767644764305,9.99613998,138.78,138.7,7.8783563]
[1767644764506,17.20227163,138.78,138.7,7.8783563]
[1767644764706,7.20613165,138.78,138.7,7.8783563]
[1767644764901,7.20521313,138.79,138.71,0.66890887]
[1767644765215,0.69431178,138.78,138.71,0.66890887]
[1767644765714,0.69431178,138.78,138.72,13.78890887]
[1767644765917,0.66431179,138.78,138.73,0.66890887]
[1767644766423,0.66431179,138.78,138.73,7.87705463]
[1767644767098,0.66431179,138.78,138.72,13.12]
[1767644767418,31.13131297,138.81,138.73,7.20819245]
[1767644767604,20.324219,138.81,138.73,7.87710132]
[1767644768005,0.72431177,138.8,138.73,7.87710132]
[1767644768605,0.72431177,138.79,138.73,7.87710132]
[1767644769307,0.69431178,138.79,138.73,7.87710132]
[1767644770416,0.66431179,138.79,138.73,7.87710132]
[1767644770715,0.6343118,138.79,138.73,7.87710132]
[1767644770916,0.6343118,138.79,138.73,69.47710132]
[1767644771310,7.83944862,138.79,138.73,69.47710132]
[1767644771519,0.6343118,138.79,138.73,69.47710132]
[1767644772309,7.20527447,138.79,138.73,62.26890887]
[1767644772510,0.72431177,138.78,138.73,62.26890887]
[1767644772718,0.72431177,138.78,138.73,7.87707759]
[1767644773021,0.72431177,138.8,138.74,0.66890887]
[1767644773326,0.72431177,138.8,138.74,7.87644257]
[1767644775306,0.72431177,138.79,138.72,62.26890887]
[1767644775619,0.72431177,138.78,138.72,61.6]
[1767644775827,0.72431177,138.78,138.71,7.20908308]
[1767644776022,0.72431177,138.77,138.71,7.87799195]
[1767644776520,0.72431177,138.76,138.69,20.9990803]
[1767644776896,7.93151897,138.75,138.69,20.9990803]
[1767644778519,7.93151897,138.75,138.67,18.02781892]
[1767644778520,0.72431177,138.74,138.67,0.66890887]
[1767644779032,0.72431177,138.74,138.67,7.88012092]
[1767644779218,0.72431177,138.74,138.68,0.66890887]
[1767644779423,0.72431177,138.74,138.68,7.87962584]
[1767644779609,7.93116679,138.76,138.7,0.66890887]
[1767644779812,0.72431177,138.75,138.7,0.66890887]
[1767644780726,7.93152779,138.75,138.7,0.66890887]
[1767644781027,0.72431177,138.74,138.7,0.66890887]
[1767644781232,0.72431177,138.74,138.67,0.66890887]
[1767644781530,0.72431177,138.74,138.67,13.80890887]
[1767644782622,0.72431177,138.72,138.67,13.80890887]
[1767644783217,0.72431177,138.72,138.67,21.02024973]
[1767644783412,0.72431177,138.72,138.67,7.88024973]
[1767644783631,0.72431177,138.72,138.67,0.66890887]
[1767644784934,0.72431177,138.72,138.67,7.8802389]
[1767644785937,0.72431177,138.72,138.68,0.66890887]
[1767644786155,7.93214711,138.74,138.68,0.66890887]
[1767644786633,0.72431177,138.73,138.68,0.66890887]
[1767644787134,7.93270789,138.73,138.68,0.66890887]
[1767644787324,0.72431177,138.72,138.68,0.66890887]
[1767644788029,0.72431177,138.74,138.68,7.87972154]
[1767644788411,9.99613998,138.76,138.69,0.66890887]
[1767644788412,7.93121932,138.76,138.69,0.66890887]
[1767644788743,0.72431177,138.76,138.7,0.66890887]
[1767644789121,0.72431177,138.78,138.72,0.66890887]
[1767644789934,0.72431177,138.78,138.73,0.66890887]
[1767644790435,7.2047872,138.8,138.74,0.66890887]
[1767644790608,0.72431177,138.8,138.74,0.66890887]
[1767644791214,0.72431177,138.8,138.75,0.69240758]
[1767644792431,0.70099444,138.82,138.76,0.69240758]
[1767644794231,0.70099444,138.82,138.77,7.89857606]
[1767644794632,7.90421847,138.83,138.78,0.69240758]
[1767644795549,0.70099444,138.82,138.78,0.69240758]
[1767644796353,0.70099444,138.86,138.8,0.69240758]
[1767644797659,7.90145802,138.88,138.82,0.69240758]
[1767644797855,0.70099444,138.87,138.82,0.69240758]
[1767644798762,0.70099444,138.87,138.81,0.69240758]
[1767644799459,7.90197826,138.87,138.81,0.69240758]
[1767644799761,0.70099444,138.87,138.82,0.69240758]
[1767644800366,0.70099444,138.86,138.8,0.69240758]
[1767644801383,0.70099444,138.86,138.8,7.89698345]
[1767644801666,0.70099444,138.86,138.81,0.69240758]
[1767644801840,0.70099444,138.85,138.81,0.69240758]
[1767644802168,0.70099444,138.85,138.79,13.83240758]
[1767644803267,0.70099444,138.85,138.79,21.03749256]
[1767644803469,0.70099444,138.85,138.8,0.69240758]
[1767644804154,18.00042462,138.89,138.81,0.69240758]
[1767644804852,17.99762377,138.91,138.81,0.69240758]
[1767644805052,17.99762377,138.91,138.81,62.29240758]
[1767644805365,27.99376375,138.91,138.81,62.29240758]
[1767644805567,7.19942404,138.9,138.82,7.20357297]
[1767644805776,25.19798415,138.9,138.82,7.20357297]
[1767644805946,25.19798415,138.9,138.83,0.69240758]
[1767644806144,0.70099444,138.89,138.83,0.69240758]
[1767644807344,0.70099444,138.89,138.82,0.69240758]
[1767644807665,0.56244603,138.87,138.82,0.69240758]
[1767644808166,0.56244603,138.87,138.81,61.6]
[1767644808372,0.56244603,138.87,138.81,68.80384879]
[1767644808675,0.56244603,138.87,138.81,7.20384879]
[1767644809757,7.76342803,138.87,138.82,0.69240758]
[1767644810949,0.56244603,138.87,138.82,0.69240758]
[1767644811343,7.90116235,138.89,138.82,0.69240758]
[1767644811567,0.56244603,138.88,138.82,0.69240758]
[1767644811772,0.69960896,138.86,138.82,0.69240758]
[1767644812855,0.69960896,138.86,138.8,0.69240758]
[1767644813269,0.56381766,138.85,138.78,0.69240758]
[1767644813655,0.69825104,138.83,138.78,0.69240758]
[1767644814055,0.69825104,138.83,138.78,7.89805491]
[1767644814258,0.69825104,138.83,138.79,0.70448218]
[1767644814657,0.69825104,138.83,138.78,0.70448218]
[1767644814859,10.56130198,138.82,138.75,0.70448218]
[1767644815069,0.69692015,138.81,138.75,0.70448218]
[1767644815274,0.56647958,138.8,138.75,0.70448218]
[1767644815767,7.90074579,138.79,138.75,0.70448218]
[1767644816761,0.56777095,138.78,138.73,0.70448218]
[1767644816974,0.53777096,138.78,138.73,0.70448218]
[1767644817486,20.32273052,138.84,138.76,0.70448218]
[1767644817653,38.32906875,138.84,138.76,0.70448218]
[1767644817981,38.32906875,138.84,138.76,7.20627174]
[1767644818358,20.32273052,138.84,138.76,7.91075392]
[1767644818878,0.70929003,138.83,138.76,7.91075392]
[1767644819255,0.70929003,138.83,138.77,0.70448218]
[1767644819462,0.52453341,138.82,138.76,7.20636005]
[1767644819756,0.52453341,138.82,138.78,0.70448218]
[1767644820362,7.91203888,138.84,138.78,0.70448218]
[1767644820565,7.20222749,138.85,138.78,0.70448218]
[1767644820774,7.7267609,138.85,138.78,0.70448218]
[1767644821577,0.65577799,138.84,138.79,0.70663997]
[1767644822761,7.85737969,138.86,138.79,0.70663997]
[1767644823157,0.65577799,138.86,138.8,0.70663997]
[1767644823372,7.85647676,138.88,138.82,0.70663997]
[1767644823664,0.57751033,138.87,138.82,0.70663997]
[1767644825075,0.57751033,138.87,138.81,61.6]
[1767644825580,7.85649322,138.86,138.81,62.30663997]
[1767644827568,0.65499531,138.86,138.82,0.70663997]
[1767644827783,7.77854724,138.87,138.82,0.70663997]
[1767644829187,0.65577799,138.89,138.83,0.70663997]
[1767644830789,7.8559592,138.89,138.83,0.70663997]
[1767644831091,7.77810233,138.88,138.83,0.70663997]
[1767644832188,0.65499531,138.87,138.82,0.70663997]
[1767644832491,0.65499531,138.87,138.8,7.91124645]
[1767644833187,0.57828518,138.86,138.8,7.91111368]
[1767644834698,7.77994962,138.86,138.81,0.70663997]
[1767644840492,0.57828518,138.86,138.8,0.70663997]
[1767644840696,0.65422821,138.85,138.8,0.70663997]
[1767644840885,0.65422821,138.85,138.79,0.70663997]
[1767644841086,0.65422821,138.85,138.76,80.23529]
[1767644841087,0.57904461,138.84,138.77,0.70663997]
[1767644841479,0.57904461,138.84,138.78,0.70663997]
[1767644842095,7.85653046,138.83,138.78,0.70663997]
[1767644843800,0.57978893,138.82,138.78,0.70663997]
[1767644844598,7.78337652,138.82,138.78,0.70663997]
[1767644844800,0.6527395,138.81,138.76,0.70663997]
[1767644845098,49.12748955,138.86,138.79,0.70663997]
[1767644845099,0.65577799,138.85,138.79,0.70663997]
[1767644845288,20.97671768,138.86,138.79,0.70663997]
[1767644845898,0.65499531,138.86,138.79,0.70663997]
[1767644846203,0.65499531,138.86,138.81,0.70663997]
[1767644846577,7.77861665,138.87,138.81,0.70663997]
[1767644847292,0.57751033,138.87,138.81,0.70663997]
[1767644848195,7.77855163,138.87,138.81,0.70663997]
[1767644849184,0.65499531,138.86,138.81,0.70663997]
[1767644849699,0.65499531,138.86,138.79,0.70663997]
[1767644849700,0.65422821,138.84,138.79,0.70663997]
[1767644851098,0.57904461,138.83,138.79,0.70663997]
[1767644851894,7.86334711,138.85,138.8,0.71720673]
[1767644852203,0.66125943,138.85,138.8,0.71720673]
[1767644853507,7.8633411,138.85,138.8,0.71720673]
[1767644853809,0.5720837,138.84,138.78,0.71720673]
[1767644854815,7.77478519,138.84,138.79,0.71720673]
[1767644855015,0.5720837,138.84,138.79,0.71720673]
[1767644857413,0.5720837,138.84,138.8,0.71720673]
[1767644857915,7.20212436,138.85,138.8,0.71720673]
[1767644858212,7.77420806,138.85,138.8,0.71720673]
[1767644859314,7.20155063,138.86,138.81,0.71720673]
[1767644859521,7.77363433,138.86,138.81,0.71720673]
[1767644860495,0.66036767,138.85,138.81,0.71720673]
[1767644863702,7.86242226,138.87,138.82,0.71720673]
[1767644863909,0.5720837,138.86,138.82,0.71720673]
[1767644864713,0.66125943,138.87,138.82,0.71720673]
[1767644865299,13.78125943,138.89,138.83,0.71720673]
[1767644865601,0.66125943,138.89,138.83,0.71720673]
[1767644866601,7.77169951,138.9,138.83,0.71720673]
[1767644866812,7.77169951,138.9,138.85,0.71720673]
[1767644867413,0.66036767,138.89,138.85,0.71720673]
[1767644868715,0.66125943,138.91,138.86,0.71720673]
[1767644868919,7.87017205,138.93,138.86,0.71720673]
[1767644869416,0.66036767,138.92,138.86,0.71720673]
[1767644870920,0.57296654,138.9,138.86,0.71720673]
[1767644872904,7.85986228,138.92,138.86,0.71720673]
[1767644873912,7.85986228,138.92,138.87,0.65400305]
[1767644874906,0.66125943,138.92,138.88,0.65400305]
[1767644875214,0.1,138.93,138.88,0.65400305]
[1767644875415,7.82304258,138.93,138.88,0.65400305]
[1767644876417,0.62512254,138.93,138.89,0.65400305]
[1767644877325,0.1,138.93,138.89,0.65400305]
[1767644878225,0.1,138.93,138.9,0.65400305]
[1767644879031,0.70869495,138.97,138.93,0.65400305]
[1767644879213,0.62412254,138.98,138.93,0.65400305]
[1767644879421,0.80869495,138.99,138.93,0.65400305]
[1767644879718,0.1,138.99,138.93,0.65400305]
[1767644880129,0.1,138.99,138.94,0.65400305]
[1767644880310,0.72495981,138.99,138.94,0.65400305]
[1767644880627,0.72495981,138.99,138.92,0.65400305]
[1767644880806,0.70702033,138.98,138.92,0.65400305]
[1767644881007,0.62578041,138.97,138.92,0.65400305]
[1767644881239,0.68231497,138.96,138.9,0.70475981]
[1767644881606,0.68231497,138.96,138.91,0.70475981]
[1767644882034,0.65023872,138.95,138.89,0.70475981]
[1767644882208,0.65055628,138.93,138.89,0.70475981]
[1767644882609,7.8792562,138.95,138.9,0.70475981]
[1767644882914,0.1,139.01,138.96,7.8792562]
[1767644883230,0.42965567,139.05,139.01,0.1]
[1767644883634,1.11197064,139.05,138.98,8.35013837]
[1767644884008,0.42965567,139.05,138.98,8.35013837]
[1767644884411,0.68231497,139.04,138.96,13.12]
[1767644884709,0.68231497,139.04,138.96,21.47013837]
[1767644885439,0.68231497,139.04,138.97,7.19545767]
[1767644885645,0.68231497,139.04,138.98,7.1952058]
[1767644886223,1.11197064,139.05,138.99,15.54441335]
[1767644887143,0.42965567,139.05,138.99,15.54441335]
[1767644888833,0.42965567,139.05,139.0,13.12]
[1767644889020,0.1,139.07,139.01,5.51529]
[1767644889420,0.78231497,139.1,139.01,5.51529]
[1767644890026,0.1,139.1,139.02,25.17623363]
[1767644890263,0.1,139.1,139.03,5.51529]
[1767644890549,1e-08,139.12,139.03,5.51529]
[1767644890750,0.68231497,139.24,139.07,13.86542837]
[1767644891057,0.68231497,139.24,139.12,5.51529]
[1767644891058,0.68231497,139.23,139.12,5.51529]
[1767644891235,0.18231497,139.23,139.16,8.35013837]
[1767644891552,0.18231497,139.23,139.18,0.5]
[1767644891741,1.54926846,139.25,139.2,8.35013837]
[1767644891935,1.54926846,139.25,139.21,0.5]
[1767644892134,1.04926846,139.25,139.21,7.18331162]
[1767644892350,7.66683448,139.27,139.21,5.51529]
[1767644892549,25.61757764,139.27,139.16,8.35013837]
[1767644892850,25.61757764,139.27,139.16,13.12]
[1767644893230,0.68231497,139.26,139.16,21.47013837]
[1767644893426,0.68231497,139.26,139.19,8.35013837]
[1767644893627,0.48641302,139.27,139.19,8.35013837]
[1767644893628,1.16872799,139.27,139.2,13.1]
[1767644893844,0.48641302,139.27,139.2,13.1]
[1767644894143,0.68231497,139.26,139.18,8.35013837]
[1767644894852,0.68231497,139.26,139.19,7.18432181]
[1767644895345,0.68231497,139.26,139.18,8.35013837]
[1767644895649,0.68231497,139.22,139.14,3.74974865]
[1767644896255,0.68231497,139.2,139.14,3.74974865]
[1767644896747,0.68231497,139.26,139.15,18.61529]
[1767644896956,0.68231497,139.26,139.15,26.96542837]
[1767644897138,0.68231497,139.25,139.15,26.96542837]
[1767644897449,7.66681304,139.27,139.14,42.004266]
[1767644897450,0.68231497,139.24,139.14,42.004266]
[1767644898138,0.68231497,139.23,139.16,7.18597298]
[1767644898339,0.68231497,139.23,139.15,12.70168806]
[1767644898527,0.68231497,139.23,139.14,24.03665923]
[1767644898731,0.68231497,139.23,139.15,7.18624297]
[1767644898927,0.68231497,139.23,139.14,16.84974865]
[1767644899133,0.68231497,139.23,139.15,7.18633756]
[1767644899332,0.68231497,139.25,139.17,8.35013837]
[1767644899555,0.68231497,139.25,139.18,5.51529]
[1767644899853,0.68231497,139.26,139.18,18.61529]
[1767644900233,0.68231497,139.26,139.19,7.18442416]
[1767644901980,0.48641302,139.27,139.2,5.51529]
[1767644902253,0.68231497,139.26,139.17,8.35013837]
[1767644902454,1.16872799,139.27,139.2,7.18390279]
[1767644902657,0.68231497,139.26,139.2,7.18390279]
[1767644902831,0.48641302,139.27,139.2,7.18390279]
[1767644903140,8.34915633,139.27,139.2,7.18390279]
[1767644903342,0.68231497,139.26,139.2,13.1]
[1767644904130,0.68231497,139.26,139.18,17.96114803]
[1767644904355,0.68231497,139.26,139.19,8.35013837]
[1767644904542,0.68231497,139.25,139.16,20.28556291]
[1767644904743,13.1,139.31,139.16,20.28556291]
[1767644904744,13.1,139.36,139.21,0.68231497]
[1767644904930,9.98168948,139.32,139.21,0.68231497]
[1767644905651,9.98168948,139.33,139.21,0.68231497]
[1767644905863,25.12382455,139.31,139.22,7.86519099]
[1767644906043,35.10551403,139.31,139.2,22.13245334]
[1767644906237,9.98168948,139.28,139.18,0.68231497]
[1767644906465,9.98168948,139.26,139.15,0.68231497]
[1767644906764,13.1,139.3,139.15,0.68231497]
[1767644906765,0.68231497,139.23,139.15,0.68231497]
[1767644907268,0.68231497,139.2,139.14,3.74974865]
[1767644907938,0.68231497,139.18,139.14,3.74974865]
[1767644908643,0.68231497,139.18,139.14,10.9364932]
[1767644908838,0.68231497,139.2,139.14,11.61880817]
[1767644909052,0.68231497,139.22,139.15,0.68231497]
[1767644909964,7.86540636,139.22,139.15,7.868694]
[1767644910158,0.68231497,139.21,139.14,24.03658577]
[1767644910461,0.68231497,139.21,139.14,24.71890074]
[1767644910662,0.68231497,139.21,139.15,7.18638486]
[1767644911076,0.72042235,139.28,139.16,0.68231497]
[1767644911247,0.72042235,139.25,139.16,0.68231497]
[1767644911756,0.72042235,139.23,139.16,0.68231497]
[1767644912264,0.72042235,139.23,139.17,7.18545663]
[1767644912942,0.72042235,139.23,139.18,0.68231497]
[1767644913142,0.72042235,139.25,139.18,0.68231497]
[1767644914049,0.72042235,139.25,139.19,7.86673913]
[1767644914368,0.72042235,139.24,139.17,9.03245334]
[1767644914870,0.72042235,139.24,139.17,7.8674377]
[1767644915365,0.72042235,139.26,139.19,0.68231497]
[1767644915751,0.72042235,139.28,139.22,0.68231497]
[1767644916262,0.72042235,139.28,139.23,7.86467509]
[1767644916470,0.72042235,139.28,139.23,7.80467509]
[1767644916996,0.72042235,139.3,139.23,7.74467509]
[1767644917174,0.72042235,139.38,139.24,0.68231497]
[1767644917347,0.72042235,139.38,139.27,0.68231497]
[1767644917675,0.72042235,139.38,139.3,0.68231497]
[1767644918261,7.89507636,139.38,139.31,7.86055055]
[1767644918447,0.72042235,139.37,139.3,7.17866546]
[1767644918648,0.72042235,139.37,139.31,0.68231497]
[1767644918865,0.72042235,139.39,139.31,0.68231497]
[1767644919448,0.72042235,139.39,139.32,0.68231497]
[1767644920143,0.72042235,139.38,139.31,0.68231497]
[1767644920348,0.72042235,139.37,139.31,0.68231497]
[1767644920561,0.72042235,139.37,139.31,6.19760497]
[1767644920864,0.72042235,139.39,139.33,0.68231497]
[1767644921242,0.72042235,139.39,139.31,7.86036916]
[1767644922154,0.72042235,139.39,139.32,0.68231497]
[1767644922356,0.72042235,139.39,139.33,7.85952016]
[1767644922654,0.72042235,139.38,139.32,7.85986891]
[1767644923040,10.22406555,139.4,139.32,7.85986891]
[1767644923041,3.7707892,139.4,139.33,0.68231497]
[1767644924457,3.7707892,139.4,139.34,7.17669011]
[1767644924653,0.72042235,139.39,139.34,7.17669011]
[1767644924869,3.7707892,139.4,139.35,0.68231497]
[1767644926154,3.05036685,139.4,139.35,0.68231497]
[1767644926561,3.05036685,139.4,139.36,7.17566016]
[1767644927058,2.55036685,139.4,139.36,0.68231497]
[1767644927262,2.55036685,139.4,139.34,7.85881428]
[1767644927460,0.72042235,139.39,139.34,7.85881428]
[1767644927979,0.72042235,139.39,139.32,0.68231497]
[1767644928354,0.72042235,139.38,139.3,7.86074322]
[1767644928555,0.72042235,139.36,139.3,0.68231497]
[1767644929276,0.72042235,139.36,139.28,7.86191615]
[1767644929453,0.72042235,139.34,139.28,7.86185575]
[1767644931070,13.80042235,139.36,139.29,0.68231497]
[1767644931258,0.72042235,139.35,139.29,0.68231497]
[1767644932152,13.80042235,139.37,139.29,0.68231497]
[1767644932562,0.72042235,139.36,139.29,0.68231497]
[1767644932772,0.72042235,139.36,139.3,7.17875089]
[1767644933461,0.72042235,139.36,139.3,7.86106586]
[1767644935677,0.69975204,139.35,139.3,7.86106586]
[1767644936191,20.95510547,139.37,139.3,7.86106586]
[1767644936363,0.69975204,139.36,139.3,7.86106586]
[1767644936875,0.69975204,139.33,139.28,7.8513058]
[1767644937077,0.69975204,139.33,139.28,0.6715325]
[1767644937282,0.69975204,139.32,139.25,0.6715325]
[1767644937477,0.69975204,139.32,139.25,7.85236]
[1767644937673,0.69975204,139.32,139.26,7.18059738]
[1767644937857,0.69975204,139.32,139.25,7.8527423]
[1767644938067,10.68144152,139.3,139.24,7.18181213]
[1767644938258,0.69975204,139.29,139.23,4.36673977]
[1767644938458,0.69975204,139.29,139.23,3.69520727]
[1767644938869,0.69975204,139.29,139.23,10.87734879]
[1767644939174,0.69975204,139.28,139.23,3.69520727]
[1767644940080,13.30104181,139.29,139.23,3.69520727]
[1767644940081,0.69975204,139.25,139.23,3.69520727]
[1767644940383,0.69975204,139.25,139.23,2.24520727]
[1767644940564,13.08,139.26,139.23,2.07727428]
[1767644940759,0.59474451,139.25,139.2,61.6]
[1767644941068,0.59474451,139.25,139.19,7.84970312]
[1767644941478,7.77628269,139.25,139.19,7.84970312]
[1767644941786,0.59474451,139.25,139.19,7.84970312]
[1767644943483,0.59474451,139.25,139.2,0.6653289]
[1767644944992,0.07253,139.23,139.2,0.6653289]
[1767644945187,0.07253,139.23,139.2,7.8488061]
[1767644945493,13.08,139.32,139.23,0.6653289]
[1767644945675,13.18609132,139.32,139.23,0.6653289]
[1767644946291,0.10609132,139.32,139.23,0.6653289]
[1767644946495,0.66511909,139.34,139.23,0.6653289]
[1767644947072,20.9218129,139.34,139.25,0.6653289]
[1767644947593,13.74511909,139.34,139.25,0.6653289]
[1767644948487,0.66511909,139.34,139.25,0.6653289]
[1767644949189,0.66511909,139.34,139.27,0.6653289]
[1767644949389,7.84182065,139.34,139.27,0.6653289]
[1767644950282,7.84182065,139.34,139.28,7.17978173]
[1767644950587,7.84182065,139.34,139.28,7.84511063]
[1767644950976,0.10609132,139.33,139.28,0.6653289]
[1767644951985,0.10609132,139.33,139.26,7.84607562]
[1767644952297,0.10609132,139.33,139.27,7.18013584]
[1767644952494,0.10609132,139.33,139.27,0.6653289]
[1767644952694,35.8713459,139.39,139.27,0.6653289]
[1767644952695,0.65952881,139.38,139.27,0.6653289]
[1767644952900,0.11162569,139.36,139.27,0.6653289]
[1767644953690,0.11162569,139.36,139.29,0.6653289]
[1767644953898,17.93587285,139.39,139.29,0.6653289]
[1767644953899,13.18609132,139.39,139.29,0.6653289]
[1767644954693,0.10609132,139.39,139.31,0.6653289]
[1767644954890,2.55036685,139.4,139.31,0.6653289]
[1767644955710,2.55036685,139.4,139.32,25.12202124]
[1767644955904,2.55036685,139.4,139.33,0.6653289]
[1767644956282,2.65645817,139.4,139.33,0.6653289]
[1767644957303,2.55036685,139.4,139.35,0.6653289]
[1767644957977,2.55036685,139.4,139.34,38.19841538]
[1767644957978,1e-08,139.4,139.37,0.6653289]
[1767644958176,0.44051061,139.42,139.38,0.6653289]
[1767644958177,1e-08,139.42,139.38,0.6653289]
[1767644958380,0.66511909,139.48,139.4,0.6653289]
[1767644958598,0.61206932,139.49,139.42,0.6653289]
[1767644958816,0.65952881,139.48,139.4,0.6653289]
[1767644959105,0.65952881,139.48,139.38,8.35013837]
[1767644959106,0.11162569,139.47,139.39,0.6653289]
[1767644959305,0.11162569,139.47,139.41,0.6653289]
[1767644959509,0.65404978,139.46,139.39,0.6653289]
[1767644959883,0.11704993,139.45,139.39,0.6653289]
[1767644960082,0.11704993,139.45,139.38,0.6653289]
[1767644960278,0.10609132,139.47,139.4,0.6653289]
[1767644960718,1.17109709,139.49,139.4,0.6653289]
[1767644961006,0.65952881,139.47,139.4,0.6653289]
[1767644961311,0.65952881,139.47,139.4,7.83884156]
[1767644961510,1.17109709,139.49,139.41,0.6653289]
[1767644961681,0.505978,139.49,139.41,0.6653289]
[1767644961885,0.11162569,139.48,139.41,0.6653289]
[1767644962300,0.65404978,139.47,139.39,7.83929292]
[1767644962688,0.11704993,139.46,139.37,13.7453289]
[1767644962894,0.64867978,139.45,139.37,13.7453289]
[1767644963101,0.64867978,139.45,139.37,20.92009082]
[1767644963297,0.64867978,139.45,139.38,0.6653289]
[1767644963490,7.82011643,139.45,139.38,0.6653289]
[1767644964010,0.64867978,139.45,139.39,0.6653289]
[1767644964504,0.66511909,139.47,139.39,0.6653289]
[1767644965399,7.8351302,139.47,139.4,7.83893004]
[1767644965600,0.10609132,139.46,139.4,7.17360114]
[1767644966009,0.10609132,139.46,139.4,7.83893004]
[1767644966199,0.10609132,139.46,139.4,7.17360114]
[1767644966392,0.10609132,139.46,139.39,7.1739611]
[1767644966599,0.10609132,139.46,139.4,0.6653289]
[1767644966783,0.10609132,139.46,139.39,0.6653289]
[1767644966987,0.65952881,139.45,139.37,0.6653289]
[1767644967203,7.17001111,139.47,139.37,0.6653289]
[1767644967390,0.10609132,139.48,139.41,0.6653289]
[1767644967590,25.09320332,139.48,139.4,0.6653289]
[1767644967795,0.65952881,139.47,139.4,0.6653289]